[Event "Late-Titled-Tuesday-Blitz-April-16-2024"]
[Site "Chess.com"]
[Date "2024.04.16"]
[Round "9"]
[White "maurovargas01"]
[Black "th3d4rkness"]
[Result "0-1"]
[WhiteElo "1892"]
[BlackElo "2130"]
[TimeControl "180+1"]
[EndTime "15:43:34 PDT"]
[Termination "th3d4rkness won on time"]

1. e4 {[%clk 0:02:59]} 1... c5 {[%clk 0:02:59.8]} 2. Nc3 {[%clk 0:02:55.7]} 2...
Nc6 {[%clk 0:02:59.1]} 3. f4 {[%clk 0:02:56.6]} 3... a6 {[%clk 0:02:58.4]} 4.
Nf3 {[%clk 0:02:46.2]} 4... g6 {[%clk 0:02:55.7]} 5. g3 {[%clk 0:02:31.3]} 5...
Bg7 {[%clk 0:02:55.1]} 6. d3 {[%clk 0:02:31]} 6... Nd4 {[%clk 0:02:52.1]} 7. Bg2
{[%clk 0:02:28.6]} 7... d6 {[%clk 0:02:50.2]} 8. Nd5 {[%clk 0:02:28.2]} 8... e6
{[%clk 0:02:45.4]} 9. Ne3 {[%clk 0:02:28.1]} 9... Ne7 {[%clk 0:02:41.8]} 10. c3
{[%clk 0:02:28.2]} 10... Nxf3+ {[%clk 0:02:41.7]} 11. Bxf3 {[%clk 0:02:28.6]}
11... f5 {[%clk 0:02:40.8]} 12. O-O {[%clk 0:02:26]} 12... O-O {[%clk
0:02:39.9]} 13. Bg2 {[%clk 0:02:08.9]} 13... Rb8 {[%clk 0:02:39.1]} 14. Qe1
{[%clk 0:01:57.1]} 14... d5 {[%clk 0:02:37.6]} 15. e5 {[%clk 0:01:54.7]} 15...
b5 {[%clk 0:02:25.1]} 16. Nd1 {[%clk 0:01:51.3]} 16... d4 {[%clk 0:02:22.7]} 17.
c4 {[%clk 0:01:46.8]} 17... bxc4 {[%clk 0:02:20.5]} 18. dxc4 {[%clk 0:01:46]}
18... Bb7 {[%clk 0:02:17]} 19. b3 {[%clk 0:01:43.3]} 19... Bxg2 {[%clk
0:02:07.2]} 20. Kxg2 {[%clk 0:01:42.6]} 20... Qd7 {[%clk 0:02:02]} 21. Nb2
{[%clk 0:01:37.6]} 21... Qb7+ {[%clk 0:01:59.4]} 22. Kg1 {[%clk 0:01:34.2]}
22... Nc6 {[%clk 0:01:56.8]} 23. Nd3 {[%clk 0:01:32.6]} 23... Qe7 {[%clk
0:01:50.2]} 24. Ba3 {[%clk 0:01:31.8]} 24... Nb4 {[%clk 0:01:48.8]} 25. Qd2
{[%clk 0:01:20.1]} 25... a5 {[%clk 0:01:43.3]} 26. Rfd1 {[%clk 0:01:12.3]} 26...
Rfc8 {[%clk 0:01:43.1]} 27. Nb2 {[%clk 0:01:06.5]} 27... Qb7 {[%clk 0:01:40.3]}
28. Na4 {[%clk 0:01:00.7]} 28... Qe4 {[%clk 0:01:36.8]} 29. Qg2 {[%clk
0:00:42.5]} 29... Bf8 {[%clk 0:01:34.6]} 30. Rd2 {[%clk 0:00:30.6]} 30... Qxg2+
{[%clk 0:01:26.8]} 31. Kxg2 {[%clk 0:00:29.6]} 31... Be7 {[%clk 0:01:23.7]} 32.
Rad1 {[%clk 0:00:18]} 32... Kf7 {[%clk 0:01:23.5]} 33. Kf3 {[%clk 0:00:17]}
33... h6 {[%clk 0:01:22.8]} 34. h3 {[%clk 0:00:16.4]} 34... g5 {[%clk
0:01:21.8]} 35. Nb2 {[%clk 0:00:14.2]} 35... Rg8 {[%clk 0:01:17]} 36. Nd3 {[%clk
0:00:12.4]} 36... g4+ {[%clk 0:01:11.2]} 37. hxg4 {[%clk 0:00:07.7]} 37... Rxg4
{[%clk 0:01:11.1]} 38. Kf2 {[%clk 0:00:04.7]} 38... Rbg8 {[%clk 0:01:02.5]} 39.
Rg1 {[%clk 0:00:01.3]} 39... h5 {[%clk 0:00:58.1]} 0-1

[Event "Late-Titled-Tuesday-Blitz-April-16-2024"]
[Site "Chess.com"]
[Date "2024.04.16"]
[Round "9"]
[White "FuenfgegenWilly"]
[Black "ContrVersia"]
[Result "0-1"]
[WhiteElo "2468"]
[BlackElo "2843"]
[TimeControl "180+1"]
[EndTime "15:43:37 PDT"]
[Termination "ContrVersia won by resignation"]

1. d4 {[%clk 0:03:00.9]} 1... f5 {[%clk 0:02:59.3]} 2. Bg5 {[%clk 0:02:57.9]}
2... g6 {[%clk 0:02:58.3]} 3. Nc3 {[%clk 0:02:55.8]} 3... Bg7 {[%clk 0:02:58.3]}
4. e3 {[%clk 0:02:50.7]} 4... Nh6 {[%clk 0:02:58.3]} 5. Bd3 {[%clk 0:02:30.1]}
5... Nf7 {[%clk 0:02:57.1]} 6. h4 {[%clk 0:02:30.3]} 6... d6 {[%clk 0:02:50.2]}
7. Nge2 {[%clk 0:02:24]} 7... Nc6 {[%clk 0:02:31.2]} 8. Qd2 {[%clk 0:01:58.5]}
8... Nxg5 {[%clk 0:02:03.5]} 9. hxg5 {[%clk 0:01:58.3]} 9... e5 {[%clk
0:02:04.2]} 10. dxe5 {[%clk 0:01:58.1]} 10... dxe5 {[%clk 0:02:02.5]} 11. Bc4
{[%clk 0:01:45.3]} 11... Qxg5 {[%clk 0:01:50.8]} 12. Qd5 {[%clk 0:01:44.9]}
12... Qe7 {[%clk 0:01:45]} 13. O-O-O {[%clk 0:01:41]} 13... Bd7 {[%clk
0:01:38.8]} 14. Qb5 {[%clk 0:01:26.4]} 14... O-O-O {[%clk 0:01:23.1]} 15. Nd5
{[%clk 0:01:24.1]} 15... Qf8 {[%clk 0:01:22.8]} 16. Nec3 {[%clk 0:01:14.9]}
16... e4 {[%clk 0:01:17.6]} 17. Qa4 {[%clk 0:01:04.7]} 17... Qc5 {[%clk
0:01:10.4]} 18. Bb3 {[%clk 0:00:21]} 18... a6 {[%clk 0:00:55.7]} 19. Qc4 {[%clk
0:00:13.4]} 19... Qxc4 {[%clk 0:00:54.2]} 20. Bxc4 {[%clk 0:00:14.3]} 20... h5
{[%clk 0:00:52.9]} 21. Bb3 {[%clk 0:00:12.4]} 21... Rhe8 {[%clk 0:00:44.3]} 22.
Ba4 {[%clk 0:00:12.8]} 22... Ne5 {[%clk 0:00:43.2]} 23. Bxd7+ {[%clk 0:00:12.3]}
23... Rxd7 {[%clk 0:00:44.1]} 24. f4 {[%clk 0:00:11.8]} 24... Ng4 {[%clk
0:00:42.6]} 25. Rd2 {[%clk 0:00:10.4]} 25... Red8 {[%clk 0:00:42.6]} 26. Rhd1
{[%clk 0:00:10]} 26... b5 {[%clk 0:00:32.7]} 27. a3 {[%clk 0:00:10.3]} 27... Kb7
{[%clk 0:00:32.3]} 28. Nb4 {[%clk 0:00:09.7]} 28... Rxd2 {[%clk 0:00:31.1]} 29.
Rxd2 {[%clk 0:00:10.6]} 29... Rxd2 {[%clk 0:00:30.9]} 30. Kxd2 {[%clk
0:00:11.5]} 30... c6 {[%clk 0:00:30.1]} 31. b3 {[%clk 0:00:10.7]} 31... Bxc3+
{[%clk 0:00:27.1]} 32. Kxc3 {[%clk 0:00:11.1]} 32... Nxe3 {[%clk 0:00:27.4]} 33.
g3 {[%clk 0:00:10.7]} 33... Nf1 {[%clk 0:00:26.4]} 34. Kd4 {[%clk 0:00:10.8]}
34... Nxg3 {[%clk 0:00:26.6]} 35. c4 {[%clk 0:00:09.8]} 35... h4 {[%clk
0:00:26.3]} 36. Ke3 {[%clk 0:00:10]} 36... h3 {[%clk 0:00:25.4]} 0-1

[Event "Late-Titled-Tuesday-Blitz-April-16-2024"]
[Site "Chess.com"]
[Date "2024.04.16"]
[Round "9"]
[White "MarceloPlaya"]
[Black "HipsterChess22"]
[Result "1-0"]
[WhiteElo "2320"]
[BlackElo "2227"]
[TimeControl "180+1"]
[EndTime "15:43:44 PDT"]
[Termination "MarceloPlaya won by resignation"]

1. e4 {[%clk 0:03:00.9]} 1... c6 {[%clk 0:02:59.6]} 2. d4 {[%clk 0:03:00.1]}
2... d5 {[%clk 0:03:00.5]} 3. e5 {[%clk 0:02:58.9]} 3... c5 {[%clk 0:03:00.5]}
4. dxc5 {[%clk 0:02:58.2]} 4... e6 {[%clk 0:02:59.7]} 5. Be3 {[%clk 0:02:58.2]}
5... Nd7 {[%clk 0:02:57.4]} 6. Bb5 {[%clk 0:02:55.3]} 6... Ne7 {[%clk 0:02:57]}
7. Nf3 {[%clk 0:02:52.8]} 7... Nf5 {[%clk 0:02:54.5]} 8. b4 {[%clk 0:02:47]}
8... Nxe3 {[%clk 0:02:45.3]} 9. fxe3 {[%clk 0:02:46.3]} 9... g6 {[%clk
0:02:45.3]} 10. O-O {[%clk 0:02:41.6]} 10... Bg7 {[%clk 0:02:44.8]} 11. Nc3
{[%clk 0:02:23.1]} 11... O-O {[%clk 0:02:42.7]} 12. Bxd7 {[%clk 0:02:21.9]}
12... Bxd7 {[%clk 0:02:40]} 13. e4 {[%clk 0:02:14.2]} 13... Bc6 {[%clk
0:02:17.2]} 14. exd5 {[%clk 0:02:12.7]} 14... Bxd5 {[%clk 0:02:17.1]} 15. Nxd5
{[%clk 0:02:11.2]} 15... Qxd5 {[%clk 0:02:14.1]} 16. Qxd5 {[%clk 0:02:09.2]}
16... exd5 {[%clk 0:02:15]} 17. Rad1 {[%clk 0:02:04.9]} 17... Rad8 {[%clk
0:02:12.4]} 18. Rd3 {[%clk 0:01:59.3]} 18... Rfe8 {[%clk 0:02:07.1]} 19. Rfd1
{[%clk 0:01:40.6]} 19... Bxe5 {[%clk 0:02:01.9]} 20. Rxd5 {[%clk 0:01:40]} 20...
Rxd5 {[%clk 0:01:50.7]} 21. Rxd5 {[%clk 0:01:39.1]} 21... Bc3 {[%clk 0:01:51.6]}
22. b5 {[%clk 0:01:29.7]} 22... Rc8 {[%clk 0:01:50.3]} 23. Ne5 {[%clk
0:01:13.5]} 23... Bxe5 {[%clk 0:01:38.8]} 24. Rxe5 {[%clk 0:01:12.8]} 24... Kf8
{[%clk 0:01:37.2]} 25. Kf2 {[%clk 0:01:05.2]} 25... f6 {[%clk 0:01:36.5]} 26.
Rd5 {[%clk 0:01:03.8]} 26... Ke7 {[%clk 0:01:36.4]} 27. Ke3 {[%clk 0:01:02.7]}
27... Ke6 {[%clk 0:01:34.9]} 28. Kd4 {[%clk 0:01:02.6]} 28... Ke7 {[%clk
0:01:21]} 29. c4 {[%clk 0:00:59.9]} 29... Rc7 {[%clk 0:01:18.4]} 30. a4 {[%clk
0:00:53.8]} 30... Rc8 {[%clk 0:01:16.7]} 31. a5 {[%clk 0:00:53.3]} 31... Ke6
{[%clk 0:01:13.3]} 32. Rd6+ {[%clk 0:00:51.8]} 32... Ke7 {[%clk 0:01:13]} 33.
Kd5 {[%clk 0:00:49.3]} 33... f5 {[%clk 0:01:01.3]} 34. a6 {[%clk 0:00:45.6]}
34... bxa6 {[%clk 0:00:56.2]} 35. Rxa6 {[%clk 0:00:43.9]} 35... Rd8+ {[%clk
0:00:54.6]} 36. Ke5 {[%clk 0:00:34.9]} 36... Rd7 {[%clk 0:00:55.2]} 37. b6
{[%clk 0:00:29.5]} 37... axb6 {[%clk 0:00:48.3]} 38. cxb6 {[%clk 0:00:29.4]}
38... Rd1 {[%clk 0:00:47]} 39. Ra7+ {[%clk 0:00:29]} 39... Kd8 {[%clk
0:00:46.6]} 40. c5 {[%clk 0:00:27.8]} 40... h6 {[%clk 0:00:34.4]} 41. c6 {[%clk
0:00:25.9]} 41... Re1+ {[%clk 0:00:31.1]} 42. Kf6 {[%clk 0:00:25.3]} 1-0

[Event "Late-Titled-Tuesday-Blitz-April-16-2024"]
[Site "Chess.com"]
[Date "2024.04.16"]
[Round "9"]
[White "GM_dmitrij"]
[Black "marcodobrikov"]
[Result "1-0"]
[WhiteElo "2985"]
[BlackElo "2618"]
[TimeControl "180+1"]
[EndTime "15:43:47 PDT"]
[Termination "GM_dmitrij won by checkmate"]

1. d4 {[%clk 0:03:00.9]} 1... d5 {[%clk 0:02:59.9]} 2. Bg5 {[%clk 0:02:58.5]}
2... Bf5 {[%clk 0:02:50.3]} 3. Nc3 {[%clk 0:02:55.2]} 3... c6 {[%clk 0:02:50]}
4. Qd2 {[%clk 0:02:50.4]} 4... Nd7 {[%clk 0:02:44.2]} 5. f3 {[%clk 0:02:50.3]}
5... Ngf6 {[%clk 0:02:43.7]} 6. g4 {[%clk 0:02:49]} 6... Bg6 {[%clk 0:02:43.8]}
7. e3 {[%clk 0:02:45]} 7... h6 {[%clk 0:02:43.5]} 8. Bh4 {[%clk 0:02:40.6]} 8...
e6 {[%clk 0:02:39.8]} 9. Nge2 {[%clk 0:02:40.1]} 9... Bh7 {[%clk 0:02:38.6]} 10.
Bg3 {[%clk 0:02:38.7]} 10... Nb6 {[%clk 0:02:32.3]} 11. Nf4 {[%clk 0:02:32]}
11... Bd6 {[%clk 0:02:30.3]} 12. O-O-O {[%clk 0:02:26.8]} 12... Qc7 {[%clk
0:02:21.5]} 13. Kb1 {[%clk 0:02:10.8]} 13... g5 {[%clk 0:02:07.6]} 14. Nfe2
{[%clk 0:02:04.2]} 14... Nc4 {[%clk 0:02:07.2]} 15. Qc1 {[%clk 0:02:04.5]} 15...
e5 {[%clk 0:01:33.9]} 16. dxe5 {[%clk 0:02:00.1]} 16... Bxe5 {[%clk 0:01:34.8]}
17. Nd4 {[%clk 0:01:55]} 17... Bxg3 {[%clk 0:01:24.6]} 18. hxg3 {[%clk
0:01:55.9]} 18... Qxg3 {[%clk 0:01:17.2]} 19. Bxc4 {[%clk 0:01:54.1]} 19... dxc4
{[%clk 0:01:18.1]} 20. Rxh6 {[%clk 0:01:50]} 20... Bxc2+ {[%clk 0:01:06.5]} 21.
Qxc2 {[%clk 0:01:50.9]} 21... Rxh6 {[%clk 0:01:07.4]} 22. Nf5 {[%clk 0:01:51.2]}
22... Qh2 {[%clk 0:00:51.2]} 23. Qa4 {[%clk 0:01:45.4]} 23... Kf8 {[%clk
0:00:46]} 24. Qb4+ {[%clk 0:01:31.3]} 24... Kg8 {[%clk 0:00:46]} 25. Qxb7 {[%clk
0:01:30.1]} 25... Rf8 {[%clk 0:00:42]} 26. Nxh6+ {[%clk 0:01:25.8]} 26... Qxh6
{[%clk 0:00:42.9]} 27. Qxc6 {[%clk 0:01:26.5]} 27... Nxg4 {[%clk 0:00:40.4]} 28.
Qc5 {[%clk 0:01:21.1]} 28... Qg6+ {[%clk 0:00:36.5]} 29. e4 {[%clk 0:01:13.1]}
29... Nf6 {[%clk 0:00:29]} 30. Rg1 {[%clk 0:01:10.2]} 30... Nh7 {[%clk
0:00:26.9]} 31. Nd5 {[%clk 0:01:10.1]} 31... Qe6 {[%clk 0:00:18.8]} 32. Qxc4
{[%clk 0:01:06.9]} 32... Kg7 {[%clk 0:00:16.8]} 33. Qd4+ {[%clk 0:01:06.5]}
33... f6 {[%clk 0:00:16.8]} 34. Qxa7+ {[%clk 0:01:03.9]} 34... Rf7 {[%clk
0:00:17.6]} 35. Qd4 {[%clk 0:01:04.1]} 35... Qa6 {[%clk 0:00:15.3]} 36. f4
{[%clk 0:00:59.2]} 36... Kf8 {[%clk 0:00:07.6]} 37. a3 {[%clk 0:00:54.3]} 37...
Qe2 {[%clk 0:00:07]} 38. fxg5 {[%clk 0:00:48.2]} 38... Nxg5 {[%clk 0:00:07.3]}
39. Nxf6 {[%clk 0:00:47]} 39... Ne6 {[%clk 0:00:07.3]} 40. Rg8+ {[%clk
0:00:45.5]} 40... Ke7 {[%clk 0:00:07.7]} 41. Re8# {[%clk 0:00:46.4]} 1-0

[Event "Late-Titled-Tuesday-Blitz-April-16-2024"]
[Site "Chess.com"]
[Date "2024.04.16"]
[Round "9"]
[White "PhileKhoob"]
[Black "Supelyel"]
[Result "1-0"]
[WhiteElo "2315"]
[BlackElo "2414"]
[TimeControl "180+1"]
[EndTime "15:43:47 PDT"]
[Termination "PhileKhoob won by checkmate"]

1. Nf3 {[%clk 0:02:56.4]} 1... Nf6 {[%clk 0:02:59.3]} 2. g3 {[%clk 0:02:53.2]}
2... d6 {[%clk 0:02:59.4]} 3. d4 {[%clk 0:02:52.3]} 3... Nbd7 {[%clk 0:02:59.9]}
4. b3 {[%clk 0:02:51]} 4... e5 {[%clk 0:03:00]} 5. dxe5 {[%clk 0:02:51.3]} 5...
dxe5 {[%clk 0:03:00.2]} 6. Bb2 {[%clk 0:02:51.7]} 6... e4 {[%clk 0:03:00.6]} 7.
Nd4 {[%clk 0:02:51.8]} 7... c6 {[%clk 0:02:56]} 8. Bg2 {[%clk 0:02:51.6]} 8...
Bc5 {[%clk 0:02:46.6]} 9. O-O {[%clk 0:02:45]} 9... O-O {[%clk 0:02:46.2]} 10.
Nd2 {[%clk 0:02:40]} 10... Re8 {[%clk 0:02:24.5]} 11. Nc4 {[%clk 0:01:02.5]}
11... Nf8 {[%clk 0:01:41.3]} 12. e3 {[%clk 0:00:57.6]} 12... Bg4 {[%clk
0:01:37.6]} 13. Qe1 {[%clk 0:00:54.5]} 13... Qd7 {[%clk 0:01:18.5]} 14. b4
{[%clk 0:00:39.7]} 14... Bb6 {[%clk 0:01:00.6]} 15. Qc3 {[%clk 0:00:34.8]} 15...
Bh3 {[%clk 0:00:57.4]} 16. Rfd1 {[%clk 0:00:29.5]} 16... Bxg2 {[%clk 0:00:56.1]}
17. Kxg2 {[%clk 0:00:30.4]} 17... Qg4 {[%clk 0:00:53.2]} 18. h3 {[%clk
0:00:24.3]} 18... Qg5 {[%clk 0:00:46.9]} 19. Nd6 {[%clk 0:00:17.4]} 19... Ng6
{[%clk 0:00:35.1]} 20. Qb3 {[%clk 0:00:10.1]} 20... Rf8 {[%clk 0:00:30.7]} 21.
Kh2 {[%clk 0:00:07.8]} 21... Bc7 {[%clk 0:00:23]} 22. N4f5 {[%clk 0:00:07]}
22... h5 {[%clk 0:00:22.4]} 23. h4 {[%clk 0:00:06.3]} 23... Ng4+ {[%clk
0:00:21.7]} 24. Kg2 {[%clk 0:00:05.9]} 24... Qf6 {[%clk 0:00:20.5]} 25. Bxf6
{[%clk 0:00:05.3]} 25... Nxf6 {[%clk 0:00:20.7]} 26. Nc4 {[%clk 0:00:04.6]}
26... Rfe8 {[%clk 0:00:20.4]} 27. Rd2 {[%clk 0:00:04.8]} 27... Re6 {[%clk
0:00:20]} 28. Rad1 {[%clk 0:00:04.5]} 28... Ng4 {[%clk 0:00:19.6]} 29. b5 {[%clk
0:00:04.7]} 29... cxb5 {[%clk 0:00:19.6]} 30. Qxb5 {[%clk 0:00:04.6]} 30... Rae8
{[%clk 0:00:20.1]} 31. Qxb7 {[%clk 0:00:04.8]} 31... N6e5 {[%clk 0:00:20.7]} 32.
Qxc7 {[%clk 0:00:04.4]} 32... Nf3 {[%clk 0:00:19.5]} 33. Rd8 {[%clk 0:00:03.6]}
33... Rxd8 {[%clk 0:00:19.4]} 34. Rxd8+ {[%clk 0:00:04]} 34... Kh7 {[%clk
0:00:20.3]} 35. Qxf7 {[%clk 0:00:04.1]} 35... Rf6 {[%clk 0:00:20.1]} 36. Qxg7#
{[%clk 0:00:04.1]} 1-0

[Event "Late-Titled-Tuesday-Blitz-April-16-2024"]
[Site "Chess.com"]
[Date "2024.04.16"]
[Round "9"]
[White "stollenmonster"]
[Black "Tolyanius"]
[Result "1-0"]
[WhiteElo "2894"]
[BlackElo "2649"]
[TimeControl "180+1"]
[EndTime "15:43:49 PDT"]
[Termination "stollenmonster won by resignation"]

1. e4 {[%clk 0:03:00.9]} 1... e5 {[%clk 0:03:00.2]} 2. Nc3 {[%clk 0:03:00.7]}
2... Nc6 {[%clk 0:03:00.6]} 3. g3 {[%clk 0:03:00.7]} 3... h5 {[%clk 0:03:00.5]}
4. h3 {[%clk 0:03:00.7]} 4... h4 {[%clk 0:03:00.9]} 5. g4 {[%clk 0:03:01.3]}
5... Be7 {[%clk 0:02:57.2]} 6. Bg2 {[%clk 0:03:01.8]} 6... Bg5 {[%clk
0:02:57.6]} 7. Nge2 {[%clk 0:03:02.1]} 7... Nge7 {[%clk 0:02:55.7]} 8. d4 {[%clk
0:03:02.2]} 8... Bxc1 {[%clk 0:02:55.2]} 9. Rxc1 {[%clk 0:03:03.1]} 9... d6
{[%clk 0:02:51.6]} 10. Qd2 {[%clk 0:03:01.2]} 10... f6 {[%clk 0:02:19.3]} 11. f4
{[%clk 0:03:00.1]} 11... Ng6 {[%clk 0:02:12.6]} 12. O-O {[%clk 0:02:57.8]} 12...
b6 {[%clk 0:01:59.8]} 13. f5 {[%clk 0:02:57.5]} 13... Nf8 {[%clk 0:01:53.3]} 14.
g5 {[%clk 0:02:55]} 14... Nh7 {[%clk 0:01:53.1]} 15. g6 {[%clk 0:02:52.9]} 15...
Ng5 {[%clk 0:01:53]} 16. Nd5 {[%clk 0:02:53]} 16... exd4 {[%clk 0:01:39.4]} 17.
Nxd4 {[%clk 0:02:41.6]} 17... Ne5 {[%clk 0:01:39.4]} 18. Nf4 {[%clk 0:02:36.6]}
18... Bd7 {[%clk 0:01:31.6]} 19. c4 {[%clk 0:02:36.7]} 19... Qc8 {[%clk
0:01:30.8]} 20. b4 {[%clk 0:02:33.8]} 20... Rb8 {[%clk 0:00:50.1]} 21. c5 {[%clk
0:02:32.4]} 21... bxc5 {[%clk 0:00:47.2]} 22. bxc5 {[%clk 0:02:33.3]} 22... Qa6
{[%clk 0:00:47.3]} 23. Nd5 {[%clk 0:02:24.6]} 23... Kd8 {[%clk 0:00:38.4]} 24.
Kh1 {[%clk 0:02:10.2]} 24... Qa3 {[%clk 0:00:25.6]} 25. Rc3 {[%clk 0:02:04]}
25... Qa4 {[%clk 0:00:24.4]} 26. Rfc1 {[%clk 0:01:47.4]} 26... c6 {[%clk
0:00:24.8]} 27. Nf4 {[%clk 0:01:37.1]} 27... dxc5 {[%clk 0:00:25.5]} 28. Nde6+
{[%clk 0:01:33.3]} 28... Ke7 {[%clk 0:00:20.9]} 29. Nxg5 {[%clk 0:01:30.3]}
29... fxg5 {[%clk 0:00:21.8]} 30. Rxc5 {[%clk 0:01:30]} 30... gxf4 {[%clk
0:00:14.1]} 31. Rxe5+ {[%clk 0:01:29.9]} 31... Kf6 {[%clk 0:00:14.9]} 32. Qd6+
{[%clk 0:01:15.6]} 32... Kg5 {[%clk 0:00:15.3]} 33. f6+ {[%clk 0:01:15.9]} 33...
Kh6 {[%clk 0:00:15.5]} 34. Qxd7 {[%clk 0:01:06.1]} 34... gxf6 {[%clk 0:00:12.9]}
35. Rf5 {[%clk 0:00:41.3]} 35... Rbd8 {[%clk 0:00:13.2]} 36. Qc7 {[%clk
0:00:38.4]} 36... Rd1+ {[%clk 0:00:13.2]} 37. Rxd1 {[%clk 0:00:35.8]} 37...
Qxd1+ {[%clk 0:00:14.1]} 38. Kh2 {[%clk 0:00:36]} 38... Qd2 {[%clk 0:00:13.6]}
39. g7 {[%clk 0:00:27.8]} 39... Rg8 {[%clk 0:00:14.1]} 40. Rxf6+ {[%clk
0:00:27.5]} 40... Kh7 {[%clk 0:00:14.7]} 41. Qxf4 {[%clk 0:00:26]} 41... Qxf4+
{[%clk 0:00:15.1]} 42. Rxf4 {[%clk 0:00:26.6]} 42... Rxg7 {[%clk 0:00:16]} 43.
Rxh4+ {[%clk 0:00:26.8]} 43... Kg8 {[%clk 0:00:16.1]} 44. Rg4 {[%clk 0:00:27.7]}
1-0

[Event "Late-Titled-Tuesday-Blitz-April-16-2024"]
[Site "Chess.com"]
[Date "2024.04.16"]
[Round "9"]
[White "Anton_Demchenko"]
[Black "grzechu96"]
[Result "1-0"]
[WhiteElo "2967"]
[BlackElo "2780"]
[TimeControl "180+1"]
[EndTime "15:43:51 PDT"]
[Termination "Anton_Demchenko won by checkmate"]

1. e4 {[%clk 0:03:00.9]} 1... e5 {[%clk 0:02:57.4]} 2. Nf3 {[%clk 0:03:01.2]}
2... Nc6 {[%clk 0:02:57]} 3. Bc4 {[%clk 0:03:01.6]} 3... Nf6 {[%clk 0:02:56.7]}
4. d3 {[%clk 0:03:01.8]} 4... Bc5 {[%clk 0:02:55.8]} 5. Bg5 {[%clk 0:03:01.5]}
5... h6 {[%clk 0:02:47.6]} 6. Bh4 {[%clk 0:03:02]} 6... d6 {[%clk 0:02:46.7]} 7.
c3 {[%clk 0:03:01.9]} 7... Qe7 {[%clk 0:02:39.2]} 8. Nbd2 {[%clk 0:03:01.7]}
8... a6 {[%clk 0:02:37.9]} 9. O-O {[%clk 0:02:59.7]} 9... Ba7 {[%clk 0:02:35.4]}
10. Kh1 {[%clk 0:03:00.1]} 10... g5 {[%clk 0:02:29.2]} 11. Bg3 {[%clk
0:02:59.8]} 11... Bd7 {[%clk 0:02:26.1]} 12. b4 {[%clk 0:02:55.5]} 12... h5
{[%clk 0:01:54.6]} 13. h4 {[%clk 0:02:54.4]} 13... Bg4 {[%clk 0:01:39.2]} 14.
Qb3 {[%clk 0:02:51.4]} 14... gxh4 {[%clk 0:01:21.2]} 15. Bxh4 {[%clk 0:02:49]}
15... O-O-O {[%clk 0:01:19.4]} 16. Bd5 {[%clk 0:02:22.4]} 16... Nb8 {[%clk
0:01:09.6]} 17. b5 {[%clk 0:02:02.9]} 17... a5 {[%clk 0:01:09.2]} 18. b6 {[%clk
0:01:30.4]} 18... Bxb6 {[%clk 0:01:08.8]} 19. Rab1 {[%clk 0:01:31.2]} 19... Nbd7
{[%clk 0:01:06.2]} 20. d4 {[%clk 0:01:27.7]} 20... Rdg8 {[%clk 0:00:58.1]} 21.
g3 {[%clk 0:01:15.1]} 21... Bxf3+ {[%clk 0:00:52.1]} 22. Nxf3 {[%clk 0:01:15]}
22... Rg4 {[%clk 0:00:52.8]} 23. Bxf7 {[%clk 0:00:55]} 23... Rxh4+ {[%clk
0:00:42]} 24. Nxh4 {[%clk 0:00:54.4]} 24... Nxe4 {[%clk 0:00:16.8]} 25. Ng6
{[%clk 0:00:41]} 25... Qf6 {[%clk 0:00:17]} 26. Nxh8 {[%clk 0:00:38.9]} 26...
Qf3+ {[%clk 0:00:10.8]} 27. Kg1 {[%clk 0:00:26.2]} 27... Nxg3 {[%clk 0:00:09.8]}
28. Qe6 {[%clk 0:00:26.6]} 28... Ne2+ {[%clk 0:00:07.7]} 29. Kh2 {[%clk
0:00:27.2]} 29... Qf4+ {[%clk 0:00:08.2]} 30. Kg2 {[%clk 0:00:25.3]} 30... Qg5+
{[%clk 0:00:07.1]} 31. Kf3 {[%clk 0:00:25.8]} 31... c6 {[%clk 0:00:02.3]} 32.
Kxe2 {[%clk 0:00:25.7]} 32... exd4 {[%clk 0:00:02.2]} 33. Rxb6 {[%clk
0:00:23.8]} 33... dxc3 {[%clk 0:00:01.1]} 34. Qe8+ {[%clk 0:00:20.6]} 34... Kc7
{[%clk 0:00:01.3]} 35. Rxb7+ {[%clk 0:00:21.3]} 35... Kxb7 {[%clk 0:00:01.6]}
36. Qxd7+ {[%clk 0:00:22.1]} 36... Kb6 {[%clk 0:00:02.5]} 37. Rb1+ {[%clk
0:00:21.5]} 37... Kc5 {[%clk 0:00:03]} 38. Qa7# {[%clk 0:00:21.9]} 1-0

[Event "Late-Titled-Tuesday-Blitz-April-16-2024"]
[Site "Chess.com"]
[Date "2024.04.16"]
[Round "9"]
[White "Kostukov_Alex"]
[Black "Ramil_Faizrakhmanov"]
[Result "0-1"]
[WhiteElo "2339"]
[BlackElo "2864"]
[TimeControl "180+1"]
[EndTime "15:43:53 PDT"]
[Termination "Ramil_Faizrakhmanov won on time"]

1. g3 {[%clk 0:02:57]} 1... d5 {[%clk 0:02:59.3]} 2. Bg2 {[%clk 0:02:57.7]} 2...
Nf6 {[%clk 0:02:58.5]} 3. d3 {[%clk 0:02:58.6]} 3... c5 {[%clk 0:02:56]} 4. e4
{[%clk 0:02:58.5]} 4... dxe4 {[%clk 0:02:55.8]} 5. dxe4 {[%clk 0:02:59.4]} 5...
Qxd1+ {[%clk 0:02:56.1]} 6. Kxd1 {[%clk 0:03:00.2]} 6... Nc6 {[%clk 0:02:56]} 7.
f3 {[%clk 0:03:00.7]} 7... h5 {[%clk 0:02:55.2]} 8. Be3 {[%clk 0:03:01.6]} 8...
b6 {[%clk 0:02:54.4]} 9. h4 {[%clk 0:02:57.1]} 9... Bb7 {[%clk 0:02:52.9]} 10.
Nd2 {[%clk 0:02:54.7]} 10... e6 {[%clk 0:02:51.7]} 11. c3 {[%clk 0:02:54.1]}
11... Bd6 {[%clk 0:02:51.8]} 12. Bf2 {[%clk 0:02:39.6]} 12... O-O-O {[%clk
0:02:51]} 13. Kc2 {[%clk 0:02:38.1]} 13... Ne5 {[%clk 0:02:49.1]} 14. Ne2 {[%clk
0:02:07.7]} 14... Nd3 {[%clk 0:02:42.2]} 15. Be3 {[%clk 0:02:05.2]} 15... Ba6
{[%clk 0:02:31.9]} 16. Nf4 {[%clk 0:01:55.4]} 16... Nxf4 {[%clk 0:02:27.2]} 17.
gxf4 {[%clk 0:01:52.5]} 17... e5 {[%clk 0:02:24.5]} 18. fxe5 {[%clk 0:01:46.6]}
18... Bxe5 {[%clk 0:02:24.1]} 19. Bf1 {[%clk 0:01:46.7]} 19... Bb7 {[%clk
0:02:16]} 20. Nc4 {[%clk 0:01:40.7]} 20... Bc7 {[%clk 0:02:15.2]} 21. Be2 {[%clk
0:01:27.5]} 21... Rhe8 {[%clk 0:02:06.1]} 22. Rhg1 {[%clk 0:01:25.6]} 22... g6
{[%clk 0:01:58.7]} 23. Bg5 {[%clk 0:01:25]} 23... Re6 {[%clk 0:01:56.6]} 24. Bf1
{[%clk 0:01:17.5]} 24... Kb8 {[%clk 0:01:42]} 25. e5 {[%clk 0:01:13.7]} 25...
Nd5 {[%clk 0:01:32.7]} 26. Bxd8 {[%clk 0:01:10.1]} 26... Bxd8 {[%clk 0:01:33.6]}
27. Nd6 {[%clk 0:00:55.6]} 27... Ne3+ {[%clk 0:01:18.5]} 28. Kd2 {[%clk
0:00:49.9]} 28... Nxf1+ {[%clk 0:01:01.9]} 29. Rgxf1 {[%clk 0:00:48.2]} 29...
Rxe5 {[%clk 0:00:57.5]} 30. Nxb7 {[%clk 0:00:40.2]} 30... Kxb7 {[%clk
0:00:57.4]} 31. Rae1 {[%clk 0:00:39.1]} 31... Rd5+ {[%clk 0:00:52.6]} 32. Kc2
{[%clk 0:00:39.1]} 32... Bxh4 {[%clk 0:00:53.2]} 33. Rd1 {[%clk 0:00:37.5]}
33... Rf5 {[%clk 0:00:53.1]} 34. Rd7+ {[%clk 0:00:33.3]} 34... Ka6 {[%clk
0:00:52.9]} 35. a4 {[%clk 0:00:30.5]} 35... Bg3 {[%clk 0:00:49.8]} 36. b4 {[%clk
0:00:21.8]} 36... cxb4 {[%clk 0:00:49.5]} 37. cxb4 {[%clk 0:00:22.2]} 37... b5
{[%clk 0:00:50]} 38. Kb3 {[%clk 0:00:17.3]} 38... bxa4+ {[%clk 0:00:41.6]} 39.
Kxa4 {[%clk 0:00:16.6]} 39... h4 {[%clk 0:00:38.4]} 40. Rc1 {[%clk 0:00:15.1]}
40... Kb6 {[%clk 0:00:38.2]} 0-1